{"text_format":"1","workbook":"xlsx","n_sheets":2,"sheets":["Смета","Акт"],"not_rendered":{"charts":0,"images":0,"macros":1,"external_links":1,"defined_names":3,"comments":0,"pivot_tables":0},"unopened":[],"bounds":{"document_bytes":16777216,"sheet_cells":100000,"rows_first":2000,"rows_last":500,"rows_between":2000,"halvings":0,"cell_chars":16384,"cell_head_chars":4096},"cells_cut":0,"cells_raw":0,"read":"whole","date_system":"1900"}

{"sheet":"Смета","index":0,"n_rows":22,"n_cols":7,"rows_kept":22,"cut":false,"hidden":false,"merged":[[17,1,17,5],[21,5,21,6],[0,1,0,6],[1,3,1,6],[6,1,6,6],[9,1,9,6],[12,1,12,5],[15,1,15,5],[16,1,16,4]]}
[null,"приложение 1"]
[]
[]
[null,"Адрес : ","ул. Первомайская, д.15, кв. 206"]
[null,"Заказчик : ","Маслов Александр Сергеевич"]
[null,"Телефон: "]
[null,"Помещение : коридор, кухня"]
[]
[null,"№","Наименование  ","Ед. изм.","Кол-во","Стоимость, руб.","Сумма, руб."]
[null,"Коридор"]
[null,1,"Нанесение  декоративного  покрытия \"*******\", включая материал.","кв м",18.43,1025,{"$f":"E11*F11","v":18890.75}]
[null,2,"Нанесение  декоративного  покрытия \"*******\", включая материал.","м п ",12.24,{"$f":"F11*0.5","v":512.5},{"$f":"E12*F12","v":6273}]
[null,"Кухня"]
[null,3,"Нанесение  декоративного  покрытия \"*******\", включая материал.","кв м",8.49,1025,{"$f":"E14*F14","v":8702.25}]
[null,4,"Нанесение  декоративного  покрытия \"*******\", включая материал.","м п ",5.47,{"$f":"F14*0.5","v":512.5},{"$f":"E15*F15","v":2803.375}]
[null,"итого:"]
[null,"Накладные расходы",null,null,null,0.05,{"$f":"G16*F17","v":0}]
[null,"Всего:",null,null,null,null,{"$f":"SUM(G16:G17)","v":0}]
[]
[]
[]
[null,"Исполнитель:",null,"Заказчик:"]

{"sheet":"Акт","index":1,"n_rows":29,"n_cols":12,"rows_kept":29,"cut":false,"hidden":false,"merged":[[11,1,11,6],[20,1,20,6],[31,1,31,2],[28,1,28,2],[29,1,29,2],[30,1,30,2],[14,1,14,5],[17,1,17,5],[18,1,18,4],[19,1,19,5],[28,5,28,6],[22,2,22,6]]}
[]
[null,null,null,null,null,null,"«**»  ****** 2015 г.",null,null,null,null," "]
[]
[null,null,null,"АКТ СДАЧИ-ПРИЕМКИ РАБОТ №1"]
[]
[null,"     Настоящий акт составлен представителями Заказчика и Исполнителя в том, что работы (услуги),"]
[null,{"$f":"\"согласно приложения 1, к договору № \"&A1&B1&C1&\" от \"&D1&E1&F1&\" выполнены полностью, в срок и с\"","v":"согласно приложения 1, к договору №  от  выполнены полностью, в срок и с"}]
[null," надлежащим качеством."]
[null,null,null,"Заказчик принял следующие работы:"]
[]
[null,"№","Наименование  ","Ед. изм.","Кол-во","Стоимость, руб.","Сумма, руб."]
[null,"Коридор"]
[null,1,"Нанесение  декоративного  покрытия \"*******\", включая материал.","кв м",18.43,1025,{"$f":"E13*F13","v":18890.75}]
[null,2,"Нанесение  декоративного  покрытия \"*******\", включая материал.","м п ",12.24,{"$f":"F13*0.5","v":512.5},{"$f":"E14*F14","v":6273}]
[null,"Кухня"]
[null,3,"Нанесение  декоративного  покрытия \"*******\", включая материал.","кв м",8.49,1025,{"$f":"E16*F16","v":8702.25}]
[null,4,"Нанесение  декоративного  покрытия \"*******\", включая материал.","м п ",5.47,{"$f":"F16*0.5","v":512.5},{"$f":"E17*F17","v":2803.375}]
[null,"итого:"]
[null,"Накладные расходы",null,null,null,0.05,{"$f":"G18*F19","v":0}]
[null,"Всего:",null,null,null,null,{"$f":"SUM(G18:G19)","v":0}]
[]
[null,"Стороны претензий не имеют. Полная стоимость нанесения материалов составляет:"]
[null,{"$f":"#REF!","v":{"$error":"#REF!"}},{"$f":"[1]!Сумма_прописью(B23)","v":{"$error":"#NAME?"}}]
[null,"Настоящий акт составлен в двух экземплярах, по одному  для каждой из сторон."]
[]
[]
[null,null,"Исполнитель",null,null,null,"Заказчик"]
[]
[null,null,null,null,null,{"$f":"Смета!C5","v":"Маслов Александр Сергеевич"}]